Workbook

Sheet Sheet1
A1: 附件
A2: 贵州农业职业学院2025年公开招聘工作人员笔试成绩、面试成绩、总成绩及进入体检环节人员名单
A3: 序号 | B3: 姓名 | C3: 报考岗位及代码 | D3: 招聘人数 | E3: 笔试成绩 （按百分制折算） | F3: 笔试折算成绩 （按占总成绩40%折算） | G3: 面试成绩 （按百分制计算） | H3: 面试折算成绩（按占总成绩60%折算） | I3: 总成绩 | J3: 总成绩 排 名 | K3: 是否进 入体检 | L3: 备注
A4: 1 | B4: 黄萱 | C4: 22828050101专业教师 | D4: 2 | E4: 55.33 | F4: =ROUND(E4*0.4,2) -> 22.13 | G4: 88.17 | H4: =ROUND(G4*0.6,2) -> 52.9 | I4: =H4+F4 -> 75.03 | J4: 1 | K4: 是
A5: 2 | B5: 王绘 | C5: 22828050101专业教师 | E5: 57.33 | F5: =ROUND(E5*0.4,2) -> 22.93 | G5: 84.67 | H5: =ROUND(G5*0.6,2) -> 50.8 | I5: =H5+F5 -> 73.73 | J5: 2 | K5: 是
A6: 3 | B6: 张璐 | C6: 22828050101专业教师 | E6: 51.83 | F6: 20.73 | G6: 83.5 | H6: 50.1 | I6: =H6+F6 -> 70.83 | J6: 3 | K6: 否
A7: 4 | B7: 王佳佳 | C7: 22828050101专业教师 | E7: 54.5 | F7: 21.8 | G7: 77.17 | H7: 46.3 | I7: =H7+F7 -> 68.1 | J7: 4 | K7: 否
A8: 5 | B8: 田小鹏 | C8: 22828050101专业教师 | E8: 53.33 | F8: 21.33 | G8: 73.5 | H8: 44.1 | I8: =H8+F8 -> 65.43 | J8: 5 | K8: 否
A9: 6 | B9: 刘云露 | C9: 22828050101专业教师 | E9: 67.5 | F9: 27 | G9: —— | H9: —— | I9: —— | J9: —— | K9: 否 | L9: 缺考
A10: 7 | B10: 李洪林 | C10: 22828050102专业教师 | D10: 1 | E10: 53.67 | F10: 21.47 | G10: 88.17 | H10: 52.9 | I10: =H10+F10 -> 74.37 | J10: 1 | K10: 是
A11: 8 | B11: 黄康敏 | C11: 22828050102专业教师 | E11: 59 | F11: 23.6 | G11: 80.67 | H11: 48.4 | I11: 72 | J11: 2 | K11: 否
A12: 9 | B12: 程态明 | C12: 22828050102专业教师 | E12: 57.5 | F12: 23 | G12: 76.93 | H12: 46.16 | I12: 69.16 | J12: 3 | K12: 否
A13: 10 | B13: 罗天 | C13: 22828050103专业教师 | D13: 2 | E13: 63.67 | F13: 25.47 | G13: 86.83 | H13: 52.1 | I13: 77.57 | J13: 1 | K13: 是
A14: 11 | B14: 唐沙 | C14: 22828050103专业教师 | E14: 60 | F14: 24 | G14: 87 | H14: 52.2 | I14: 76.2 | J14: 2 | K14: 是
A15: 12 | B15: 任攀 | C15: 22828050103专业教师 | E15: 53.67 | F15: 21.47 | G15: 89.67 | H15: 53.8 | I15: 75.27 | J15: 3 | K15: 否
A16: 13 | B16: 陈学艳 | C16: 22828050103专业教师 | E16: 55.17 | F16: 22.07 | G16: 84 | H16: 50.4 | I16: 72.47 | J16: 4 | K16: 否
A17: 14 | B17: 朱倩倩 | C17: 22828050103专业教师 | E17: 51.83 | F17: 20.73 | G17: 80.67 | H17: 48.4 | I17: 69.13 | J17: 5 | K17: 否
A18: 15 | B18: 孙勇 | C18: 22828050103专业教师 | E18: 53.33 | F18: 21.33 | G18: 76.33 | H18: 45.8 | I18: 67.13 | J18: 6 | K18: 否
A19: 16 | B19: 熊前龙 | C19: 22828050105专业教师 | D19: 1 | E19: 62.67 | F19: 25.07 | G19: 82.67 | H19: 49.6 | I19: 74.67 | J19: 1 | K19: 是
A20: 17 | B20: 周雏蕾 | C20: 22828050106专业教师 | D20: 1 | E20: 62.5 | F20: 25 | G20: 88 | H20: 52.8 | I20: 77.8 | J20: 1 | K20: 是
A21: 18 | B21: 尚勇 | C21: 22828050106专业教师 | E21: 57.83 | F21: 23.13 | G21: 78.33 | H21: 47 | I21: 70.13 | J21: 2 | K21: 否
A22: 19 | B22: 焦后意 | C22: 22828050107专业教师 | D22: 2 | E22: 63.5 | F22: 25.4 | G22: 86.83 | H22: 52.1 | I22: 77.5 | J22: 1 | K22: 是
A23: 20 | B23: 聂鲜钰 | C23: 22828050107专业教师 | E23: 57 | F23: 22.8 | G23: 86.67 | H23: 52 | I23: 74.8 | J23: 2 | K23: 是
A24: 21 | B24: 李锡锋 | C24: 22828050107专业教师 | E24: 60.83 | F24: 24.33 | G24: 76 | H24: 45.6 | I24: 69.93 | J24: 3 | K24: 否
A25: 22 | B25: 贺丽 | C25: 22828050107专业教师 | E25: 54.67 | F25: 21.87 | G25: 78.67 | H25: 47.2 | I25: 69.07 | J25: 4 | K25: 否
A26: 23 | B26: 勾邦睿 | C26: 22828050107专业教师 | E26: 56.33 | F26: 22.53 | G26: —— | H26: —— | I26: —— | J26: —— | K26: 否 | L26: 缺考
A27: 24 | B27: 杨娟 | C27: 22828050107专业教师 | E27: 56.17 | F27: 22.47 | G27: —— | H27: —— | I27: —— | J27: —— | K27: 否 | L27: 缺考
A28: 25 | B28: 陈佳 | C28: 22828050108专业教师 | D28: 1 | E28: 64.5 | F28: 25.8 | G28: 91.33 | H28: 54.8 | I28: =H28+F28 -> 80.6 | J28: 1 | K28: 是
A29: 26 | B29: 邹隆婕 | C29: 22828050108专业教师 | E29: 58.5 | F29: 23.4 | G29: 87.67 | H29: 52.6 | I29: 76 | J29: 2 | K29: 否
A30: 27 | B30: 杨仕美 | C30: 22828050108专业教师 | E30: 56.33 | F30: 22.53 | G30: 82.67 | H30: 49.6 | I30: 72.13 | J30: 3 | K30: 否
A31: 28 | B31: 王豪 | C31: 22828050109专业教师 | D31: 1 | E31: 55.67 | F31: 22.27 | G31: 83.67 | H31: 50.2 | I31: 72.47 | J31: 1 | K31: 是
A32: 29 | B32: 王琼艳 | C32: 22828050110思政课教师 | D32: 2 | E32: 70.67 | F32: 28.27 | G32: 88.4 | H32: 53.04 | I32: 81.31 | J32: 1 | K32: 是
A33: 30 | B33: 李婷 | C33: 22828050110思政课教师 | E33: 75.5 | F33: 30.2 | G33: 83.97 | H33: 50.38 | I33: 80.58 | J33: 2 | K33: 是
A34: 31 | B34: 程韵致 | C34: 22828050110思政课教师 | E34: 71 | F34: 28.4 | G34: 83.7 | H34: 50.22 | I34: 78.62 | J34: 3 | K34: 否
A35: 32 | B35: 刘芳伶 | C35: 22828050110思政课教师 | E35: 64.83 | F35: 25.93 | G35: 85.17 | H35: 51.1 | I35: 77.03 | J35: 4 | K35: 否
A36: 33 | B36: 唐莎莎 | C36: 22828050110思政课教师 | E36: 65.83 | F36: 26.33 | G36: 84.5 | H36: 50.7 | I36: 77.03 | J36: 4 | K36: 否
A37: 34 | B37: 冯燕竹 | C37: 22828050110思政课教师 | E37: 67.83 | F37: =ROUND(E37*0.4,2) -> 27.13 | G37: —— | H37: —— | I37: —— | J37: —— | K37: 否 | L37: 缺考
A38: 35 | B38: 刘丽萍 | C38: 22828050111基础课教师 | D38: 1 | E38: 72.67 | F38: 29.07 | G38: 88.5 | H38: =ROUND(G38*0.6,2) -> 53.1 | I38: =H38+F38 -> 82.17 | J38: 1 | K38: 是
A39: 36 | B39: 蔺渝轩 | C39: 22828050111基础课教师 | E39: 66.67 | F39: 26.67 | G39: 88.17 | H39: 52.9 | I39: 79.57 | J39: 2 | K39: 否
A40: 37 | B40: 胡虹颖 | C40: 22828050111基础课教师 | E40: 66.33 | F40: 26.53 | G40: 86.17 | H40: 51.7 | I40: 78.23 | J40: 3 | K40: 否
A41: 38 | B41: 刘晶晶 | C41: 22828050112基础课教师 | D41: 2 | E41: 63.17 | F41: 25.27 | G41: 92.33 | H41: 55.4 | I41: 80.67 | J41: 1 | K41: 是
A42: 39 | B42: 吴永欢 | C42: 22828050112基础课教师 | E42: 60.17 | F42: 24.07 | G42: 88 | H42: 52.8 | I42: 76.87 | J42: 2 | K42: 是
A43: 40 | B43: 陈桂志 | C43: 22828050112基础课教师 | E43: 57.67 | F43: 23.07 | G43: 87.67 | H43: 52.6 | I43: 75.67 | J43: 3 | K43: 否
A44: 41 | B44: 赵旺 | C44: 22828050112基础课教师 | E44: 61 | F44: 24.4 | G44: 85.33 | H44: 51.2 | I44: 75.6 | J44: 4 | K44: 否
A45: 42 | B45: 龙昊 | C45: 22828050112基础课教师 | E45: 60.83 | F45: 24.33 | G45: 84 | H45: 50.4 | I45: 74.73 | J45: 5 | K45: 否
A46: 43 | B46: 何孝丹 | C46: 22828050112基础课教师 | E46: 60 | F46: 24 | G46: 77.67 | H46: 46.6 | I46: 70.6 | J46: 6 | K46: 否
A47: 44 | B47: 张浩东 | C47: 22828050113基础课教师 | D47: 1 | E47: 64.17 | F47: 25.67 | G47: 90.2 | H47: 54.12 | I47: 79.79 | J47: 1 | K47: 是
A48: 45 | B48: 江永琴 | C48: 22828050113基础课教师 | E48: 61.83 | F48: 24.73 | G48: 87.93 | H48: 52.76 | I48: 77.49 | J48: 2 | K48: 否
A49: 46 | B49: 陈应剑 | C49: 22828050113基础课教师 | E49: 61.17 | F49: 24.47 | G49: 83.17 | H49: 49.9 | I49: 74.37 | J49: 3 | K49: 否
A50: 47 | B50: 郑传烨 | C50: 22828050114基础课教师 | D50: 1 | E50: 65.83 | F50: 26.33 | G50: 87.83 | H50: 52.7 | I50: 79.03 | J50: 1 | K50: 是
A51: 48 | B51: 王琼 | C51: 22828050114基础课教师 | E51: 65.5 | F51: 26.2 | G51: 86 | H51: 51.6 | I51: 77.8 | J51: 2 | K51: 否
A52: 49 | B52: 夏秋烨 | C52: 22828050114基础课教师 | E52: 73 | F52: 29.2 | G52: —— | H52: —— | I52: —— | J52: —— | K52: 否 | L52: 缺考
A53: 50 | B53: 张艳秋 | C53: 22828050115辅导员 | D53: 6 | E53: 68 | F53: 27.2 | G53: 88 | H53: 52.8 | I53: =H53+F53 -> 80 | J53: 1 | K53: 是
A54: 51 | B54: 阳丹 | C54: 22828050115辅导员 | E54: 74.17 | F54: 29.67 | G54: 83.83 | H54: 50.3 | I54: 79.97 | J54: 2 | K54: 是
A55: 52 | B55: 文健穆 | C55: 22828050115辅导员 | E55: 67.33 | F55: 26.93 | G55: 88.33 | H55: 53 | I55: 79.93 | J55: 3 | K55: 是
A56: 53 | B56: 葛玉娟 | C56: 22828050115辅导员 | E56: 65.17 | F56: 26.07 | G56: 89.33 | H56: 53.6 | I56: 79.67 | J56: 4 | K56: 是
A57: 54 | B57: 李莉 | C57: 22828050115辅导员 | E57: 67 | F57: 26.8 | G57: 87 | H57: 52.2 | I57: 79 | J57: 5 | K57: 是
A58: 55 | B58: 赵丽 | C58: 22828050115辅导员 | E58: 68.83 | F58: 27.53 | G58: 85 | H58: 51 | I58: 78.53 | J58: 6 | K58: 是
A59: 56 | B59: 敖红梅 | C59: 22828050115辅导员 | E59: 66.83 | F59: 26.73 | G59: 85.67 | H59: 51.4 | I59: 78.13 | J59: 7 | K59: 否
A60: 57 | B60: 周倩 | C60: 22828050115辅导员 | E60: 64.83 | F60: 25.93 | G60: 86.67 | H60: 52 | I60: 77.93 | J60: 8 | K60: 否
A61: 58 | B61: 吴雪梅 | C61: 22828050115辅导员 | E61: 70.33 | F61: 28.13 | G61: 83 | H61: 49.8 | I61: 77.93 | J61: 8 | K61: 否
A62: 59 | B62: 陆新美 | C62: 22828050115辅导员 | E62: 68 | F62: 27.2 | G62: 84 | H62: 50.4 | I62: 77.6 | J62: 10 | K62: 否
A63: 60 | B63: 代姗姗 | C63: 22828050115辅导员 | E63: 70 | F63: 28 | G63: 82.6 | H63: 49.56 | I63: 77.56 | J63: 11 | K63: 否
A64: 61 | B64: 罗雅嫣 | C64: 22828050115辅导员 | E64: 68.83 | F64: 27.53 | G64: 83 | H64: 49.8 | I64: 77.33 | J64: 12 | K64: 否
A65: 62 | B65: 谭龙娟 | C65: 22828050115辅导员 | E65: 68.83 | F65: 27.53 | G65: 82.33 | H65: 49.4 | I65: 76.93 | J65: 13 | K65: 否
A66: 63 | B66: 王行诗 | C66: 22828050115辅导员 | E66: 68 | F66: 27.2 | G66: 82 | H66: 49.2 | I66: 76.4 | J66: 14 | K66: 否
A67: 64 | B67: 李嘉琦 | C67: 22828050115辅导员 | E67: 65.5 | F67: 26.2 | G67: 83.33 | H67: 50 | I67: 76.2 | J67: 15 | K67: 否
A68: 65 | B68: 陈银翠 | C68: 22828050115辅导员 | E68: 64.67 | F68: 25.87 | G68: 83.67 | H68: 50.2 | I68: 76.07 | J68: 16 | K68: 否
A69: 66 | B69: 冯继红 | C69: 22828050115辅导员 | E69: 65.5 | F69: 26.2 | G69: 82 | H69: 49.2 | I69: 75.4 | J69: 17 | K69: 否
A70: 67 | B70: 赵媛媛 | C70: 22828050115辅导员 | E70: 71.33 | F70: 28.53 | G70: —— | H70: —— | I70: —— | J70: —— | K70: 否 | L70: 缺考
A71: 68 | B71: 袁婷 | C71: 22828050116《种子》《耕作与栽培》期刊编辑 | D71: 1 | E71: 66.33 | F71: 26.53 | G71: 80.33 | H71: =ROUND(G71*0.6,2) -> 48.2 | I71: =H71+F71 -> 74.73 | J71: 1 | K71: 是
A72: 69 | B72: 黎容圻 | C72: 22828050117行政管理人员 | D72: 2 | E72: 68 | F72: 27.2 | G72: 87.33 | H72: 52.4 | I72: 79.6 | J72: 1 | K72: 是
A73: 70 | B73: 钟蕙 | C73: 22828050117行政管理人员 | E73: 66.5 | F73: 26.6 | G73: 88.33 | H73: 53 | I73: 79.6 | J73: 1 | K73: 是
A74: 71 | B74: 李孝寒 | C74: 22828050117行政管理人员 | E74: 68.5 | F74: 27.4 | G74: 84 | H74: 50.4 | I74: 77.8 | J74: 3 | K74: 否
A75: 72 | B75: 余艺 | C75: 22828050117行政管理人员 | E75: 69.83 | F75: 27.93 | G75: 83 | H75: 49.8 | I75: 77.73 | J75: 4 | K75: 否
A76: 73 | B76: 叶虹丽 | C76: 22828050117行政管理人员 | E76: 67.33 | F76: 26.93 | G76: 83 | H76: 49.8 | I76: 76.73 | J76: 5 | K76: 否
A77: 74 | B77: 任婷岚 | C77: 22828050117行政管理人员 | E77: 67.17 | F77: 26.87 | G77: 80 | H77: 48 | I77: 74.87 | J77: 6 | K77: 否
